bitfinex/quotes_ETHUSD_20220213
["timestamp","ask_amount","ask_price","bid_price","bid_amount"]
[1644774758943,5.78959096,2889.7,2889.6,0.70447553]
[1644774760793,5.78959096,2889.7,2889.6,0.7036082]
[1644774761197,7.11176867,2889.7,2889.6,0.7036082]
[1644774761396,5.78959096,2889.7,2889.6,0.7036082]
[1644774764099,7.11176867,2889.7,2889.6,0.7036082]
[1644774764740,12.11176867,2889.7,2889.6,0.7036082]
[1644774764938,4.75,2889.6,2888.9,0.00230264]
[1644774765238,0.87936591,2889.4,2888.9,0.00230264]
[1644774765441,3.4012191,2889.3,2888.9,0.00230264]
[1644774765838,0.85825148,2889.0,2888.8,0.04044049]
[1644774766239,0.86575,2888.9,2888.6,0.00230264]
[1644774766640,0.86575,2888.9,2888.8,0.01010865]
[1644774767240,1.73152,2888.9,2888.8,0.01010865]
[1644774767442,0.86577,2888.8,2888.6,0.00230264]
[1644774767641,0.86577,2888.8,2888.7,0.01011931]
[1644774768694,1.73152,2888.8,2888.6,0.00230264]
[1644774768893,1.73152,2888.8,2888.6,0.01244446]
[1644774769094,0.86575,2888.7,2888.6,0.01244446]
[1644774769293,0.86575,2888.7,2888.6,0.01014182]
[1644774769895,1.73151,2888.7,2888.5,0.1729]
[1644774770096,0.86577,2888.6,2888.5,0.01014193]
[1644774771096,1.73161,2888.6,2888.4,0.31340261]
[1644774771299,2.59745,2888.6,2888.4,0.32354293]
[1644774771496,0.86584,2888.5,2888.4,0.32354293]
[1644774771853,0.86584,2888.5,2888.4,1.79476808]
[1644774772238,0.86584,2888.5,2888.4,1.78462776]
[1644774772740,1.82769427,2888.5,2888.4,1.64642779]
[1644774772943,1.82769427,2888.5,2888.3,0.14734562]
[1644774773140,1.82768427,2888.5,2888.3,0.14734562]
[1644774773342,0.86582,2888.4,2888.3,0.31030738]
[1644774773840,0.86582,2888.4,2888.3,1.78727721]
[1644774774541,0.86582,2888.4,2888.3,1.78387459]
[1644774775441,4.31406455,2888.4,2888.3,0.1731]
[1644774776293,0.86582,2888.4,2888.3,0.1731]
[1644774778093,4.18964352,2888.4,2888.3,0.1731]
[1644774778400,2.03892,2888.4,2887.9,0.00230264]
[1644774778594,2.03892,2888.4,2888.2,0.01042058]
[1644774778595,1.0,2888.3,2888.2,0.01042058]
[1644774778793,1.8662,2888.3,2888.2,0.01042058]
[1644774779446,1.8662,2888.3,2887.9,0.00230264]
[1644774779447,2.74556591,2888.3,2887.9,0.00230264]
[1644774779847,1.7325,2888.2,2888.1,0.01011403]
[1644774780246,2.0325,2888.2,2888.1,0.01011403]
[1644774780645,2.0325,2888.2,2887.5,0.00230264]
[1644774780646,0.90619836,2887.6,2887.5,0.00230264]
[1644774780848,2.63847836,2887.6,2887.3,1.47625386]
[1644774781049,0.86614,2887.5,2887.3,1.47625386]
[1644774781244,0.86614,2887.5,2887.3,0.00230264]
[1644774781545,0.86614,2887.5,2887.2,1.47395122]
[1644774781744,0.86614,2887.5,2887.2,1.47625386]
[1644774782145,0.86614,2887.5,2887.3,0.01012641]
[1644774782344,1.73229,2887.5,2887.4,1.47395122]
[1644774782545,0.86614,2887.5,2887.4,1.47395122]
[1644774782745,0.86614,2887.5,2887.3,0.01012641]
[1644774783187,0.86614,2887.5,2887.2,0.00230264]
[1644774783387,0.86614,2887.5,2887.3,0.01018582]
[1644774783690,1.7323,2887.5,2887.3,0.01018582]
[1644774783887,2.59845,2887.5,2887.3,0.01018582]
[1644774784087,1.73229,2887.5,2887.3,0.01018582]
[1644774784289,1.73229,2887.5,2886.8,0.00230264]
[1644774784488,0.86615,2887.4,2886.8,0.00230264]
[1644774784688,0.86615,2887.4,2886.8,1.47628986]
[1644774784889,4.17860852,2887.3,2886.8,1.47628986]
[1644774785089,0.86615,2887.3,2886.8,1.47628986]
[1644774785689,0.86615,2887.3,2886.8,1.47497254]
[1644774785889,1.73246,2887.2,2886.8,1.47497254]
[1644774786090,2.59866,2887.2,2886.8,1.47497254]
[1644774786292,1.73242,2887.2,2886.9,1.47398722]
[1644774786492,1.73242,2887.2,2886.8,0.00098532]
[1644774786838,1.73242,2887.2,2886.9,0.01065631]
[1644774787241,1.73242,2887.1,2886.9,0.01065631]
[1644774787439,0.16008846,2887.1,2886.9,0.01065631]
[1644774787839,0.16008846,2887.1,2886.6,0.00098532]
[1644774787840,1.02634846,2887.1,2886.6,0.00098532]
[1644774788040,1.02634846,2887.1,2886.9,0.01065638]
[1644774788239,1.70446642,2887.0,2886.9,0.01065638]
[1644774788438,2.57073642,2887.0,2886.9,0.01065638]
[1644774788843,1.70447642,2887.0,2886.9,0.01065638]
[1644774789040,1.70447642,2887.0,2886.6,0.00098532]
[1644774789240,1.70447642,2887.0,2886.8,0.01064085]
[1644774789840,0.86627,2887.0,2886.8,0.01064085]
[1644774790240,0.86627,2887.0,2886.6,0.00098532]
[1644774790589,0.86627,2887.0,2886.8,0.01064092]
[1644774791395,0.86627,2887.0,2886.7,0.00098532]
[1644774791396,1.73253,2887.0,2886.7,0.00098532]
[1644774791594,0.86329373,2886.8,2886.7,0.00098532]
[1644774791790,0.86329373,2886.8,2886.5,0.00098532]
[1644774792090,0.86329373,2886.8,2886.4,1.47420782]
[1644774792288,1.03952,2886.9,2886.4,1.47420782]
[1644774792489,1.73273,2886.8,2886.5,0.00098532]
[1644774792689,0.86635,2886.8,2886.5,0.00098532]
[1644774792890,0.86636,2886.8,2886.5,0.01163254]
[1644774793090,0.86636,2886.8,2886.5,0.01064722]
[1644774793294,1.12127374,2886.6,2886.5,0.01064722]
[1644774793892,1.12127374,2886.6,2886.4,1.47420834]
[1644774794089,1.12127374,2886.6,2886.5,1.47420834]
[1644774794348,0.86635,2886.5,2886.4,0.01064736]
[1644774794939,0.86635,2886.5,2886.4,1.48490103]
[1644774795140,0.86635,2886.5,2886.4,1.47425367]
[1644774795739,0.86635,2886.5,2886.3,0.01064749]
[1644774796140,0.86635,2886.5,2886.1,0.00098532]
[1644774796141,1.73277,2886.5,2886.1,0.00098532]
[1644774796444,1.73277,2886.5,2886.3,0.01064712]
[1644774797541,1.73277,2886.5,2886.2,0.04092649]
[1644774797743,1.73277,2886.5,2886.3,0.00391829]
[1644774798588,1.73277,2886.5,2886.2,0.04092649]
[1644774798789,1.73277,2886.5,2886.3,0.00365396]
[1644774799788,1.73277,2886.5,2886.2,0.04092649]
[1644774800191,1.73277,2886.5,2886.3,0.01102666]
[1644774800387,5.06741566,2886.5,2886.3,0.01102666]
[1644774800592,1.73277,2886.5,2886.3,0.01102666]
[1644774800790,5.0550222,2886.5,2886.3,0.01102666]
[1644774800993,1.73277,2886.5,2886.2,0.04092649]
[1644774801192,1.7329,2886.4,2886.3,0.01102666]
[1644774801390,0.86644,2886.4,2886.3,0.01102666]
[1644774801595,0.86644,2886.4,2886.3,0.05138472]
[1644774802242,0.86644,2886.4,2886.3,0.04035806]
[1644774803644,0.86644,2886.4,2886.2,0.0107237]
[1644774803645,3.45,2886.3,2886.2,0.0107237]
[1644774803843,0.86685,2886.2,2885.8,0.04388657]
[1644774804041,1.7337,2886.2,2885.8,0.04388657]
[1644774804251,3.3337,2886.2,2885.8,0.04388657]
[1644774804441,1.06836653,2886.1,2885.8,0.04388657]
[1644774804640,1.06836653,2886.1,2885.8,0.00098532]
[1644774804641,0.1731,2886.0,2885.8,0.00098532]
[1644774804842,1.90662,2886.0,2885.7,0.1731]
[1644774805042,2.77339,2886.0,2885.7,0.1731]
[1644774805243,0.86676,2885.9,2885.7,0.1731]
[1644774805442,0.1731,2885.8,2885.1,0.00098532]
[1644774805693,2.60068,2885.8,2885.1,0.00098532]
[1644774805891,6.73374988,2885.7,2885.1,0.00098532]
[1644774806091,8.46753988,2885.7,2885.1,0.00098532]
[1644774806293,0.86696,2885.2,2884.8,0.00098532]
[1644774806492,0.86696,2885.2,2884.8,1.47595041]
[1644774806694,6.17500988,2885.7,2884.6,0.00098532]
[1644774806695,1.3484,2885.7,2884.6,0.00098532]
[1644774806898,4.9886,2886.3,2884.6,2.47587274]
[1644774807092,4.9886,2886.3,2884.7,0.17418532]
[1644774807093,0.1731,2886.2,2884.7,0.17418532]
[1644774807294,1.11793769,2885.6,2884.8,0.00098532]
[1644774807493,0.1731,2885.8,2885.6,0.4551934]
[1644774807693,0.97021155,2885.7,2885.6,0.4551934]
[1644774808295,2.01013155,2885.7,2885.6,0.4551934]
[1644774808492,5.51980005,2885.7,2885.6,0.4551934]
[1644774808691,6.51980005,2885.7,2885.6,0.4551934]
[1644774809547,6.51980005,2885.7,2885.0,0.00098532]
[1644774809548,0.86691,2885.5,2885.0,0.00098532]
[1644774809741,0.86694,2885.3,2885.1,0.04515836]
[1644774809940,3.45667165,2885.2,2885.1,0.04515836]
[1644774810139,3.62977165,2885.2,2885.1,0.04515836]
[1644774810541,0.1731,2885.2,2885.1,0.04515836]
[1644774810739,0.1731,2885.2,2884.2,0.8980643]
[1644774810740,0.86688,2885.0,2884.2,0.8980643]
[1644774810941,0.86688,2885.0,2884.6,0.04516107]
[1644774811342,1.1645,2885.4,2884.7,0.94851562]
[1644774811343,1.3378,2885.4,2884.7,0.94851562]
[1644774811544,1.73363,2885.7,2884.8,0.00098532]
[1644774811740,7.4807,2885.8,2884.8,0.00098532]
[1644774811941,1.7336,2885.3,2884.8,0.00098532]
[1644774812144,0.86686,2885.2,2885.1,0.01128844]
[1644774813093,2.03150432,2885.2,2884.7,0.00098532]
[1644774813295,3.76538432,2885.2,2885.0,0.01128857]
[1644774814392,3.76538432,2885.2,2884.7,0.00098532]
[1644774814393,0.86696,2885.1,2884.7,0.00098532]
[1644774814593,1.73392,2885.1,2885.0,0.01128864]
[1644774814795,0.86696,2885.1,2885.0,0.01128864]
[1644774815597,0.86696,2885.0,2884.7,0.00098532]
[1644774815794,0.86696,2885.0,2884.9,0.01128871]
[1644774816844,1.73387,2884.8,2884.2,0.00098532]
[1644774817042,1.73387,2884.8,2884.4,0.04516215]
[1644774817944,1.003029,2884.7,2884.2,0.00098532]
[1644774818144,1.869969,2884.7,2884.5,0.01128932]
[1644774818545,3.45867804,2885.1,2884.5,0.01128932]
[1644774818546,0.86688,2885.1,2884.5,0.01128932]
[1644774819044,0.81688,2885.1,2884.5,0.01128932]
[1644774819245,1.68375,2885.1,2884.7,0.01128905]
[1644774819446,1.73377,2885.1,2884.7,0.01128905]
[1644774819848,0.8669,2885.0,2884.7,0.01128905]
[1644774820047,1.73375,2885.2,2884.7,0.01128905]
[1644774820246,1.73375,2885.2,2884.4,0.00098532]
[1644774820445,0.86683,2885.1,2884.4,1.4761243]
[1644774820702,6.13643167,2885.7,2884.7,0.01128898]
[1644774820703,1.7336,2885.4,2884.7,0.01128898]
[1644774820905,0.90557799,2886.0,2884.7,0.01128898]
[1644774820906,1.20330965,2886.0,2885.3,0.94136367]
[1644774821106,0.86658,2886.1,2885.4,0.00098532]
[1644774821504,0.86655,2886.0,2885.4,0.00098532]
[1644774821703,1.7332,2886.0,2885.4,0.50198532]
[1644774821903,0.1731,2886.5,2885.6,0.01128776]
[1644774822111,0.1731,2886.5,2885.7,0.501]
[1644774822407,0.00099259,2886.6,2885.8,0.00098532]
[1644774822602,0.00099259,2886.6,2885.7,0.501]
[1644774822603,0.86649,2886.3,2885.7,0.501]
[1644774822805,1.73306,2886.3,2885.8,0.00232703]
[1644774823005,1.73306,2886.3,2886.1,0.01128715]
[1644774823404,1.83992519,2886.2,2886.1,0.01128715]
[1644774823605,2.70649519,2886.2,2886.1,0.01128715]
[1644774824007,2.70649519,2886.2,2885.5,0.00232703]
[1644774824204,2.70649519,2886.2,2886.0,0.01128722]
[1644774825241,2.70649519,2886.2,2885.5,0.00232703]
[1644774825440,2.70649519,2886.2,2886.0,0.01128729]
[1644774825741,1.83992519,2886.2,2886.0,0.01128729]
[1644774825943,1.90609,2886.5,2886.0,0.01128729]
[1644774826140,0.1731,2886.5,2886.0,0.01128729]
[1644774826340,0.00099259,2886.6,2885.6,0.00232703]
[1644774826740,0.00099259,2886.6,2886.1,0.01128728]
[1644774826940,0.93301583,2886.7,2886.1,0.01128728]
[1644774827142,0.93301583,2886.7,2886.1,0.01361431]
[1644774827546,0.93301583,2886.7,2886.1,0.00232703]
[1644774827741,0.93301583,2886.7,2886.1,0.01361469]
[1644774827942,0.86646,2886.6,2886.1,0.01128766]
[1644774828797,0.86646,2886.6,2885.9,0.00232703]
[1644774828995,0.86646,2886.6,2886.1,0.01128754]
[1644774829795,0.86646,2886.5,2886.1,0.01128754]
[1644774829996,0.1731,2887.0,2885.9,20.85849853]
[1644774830205,0.1731,2887.2,2886.1,0.51228754]
[1644774830500,0.1731,2887.8,2886.2,0.00232703]
[1644774830695,0.1731,2887.8,2886.3,0.68239552]
[1644774830897,0.1731,2887.8,2886.4,0.00232703]
[1644774831111,0.86611,2887.6,2886.5,0.501]
[1644774831296,0.86611,2887.6,2886.7,0.86611]
[1644774831595,0.86611,2887.6,2886.8,0.501]
[1644774835592,1.07423914,2887.2,2886.8,0.501]
[1644774835993,0.86618,2887.5,2886.8,0.501]
[1644774836194,0.1731,2887.8,2886.8,0.501]
[1644774837196,0.89282292,2887.7,2887.1,1.07249148]
[1644774837396,0.86614,2887.6,2887.1,1.07249148]
[1644774837700,0.89282292,2887.7,2887.1,1.07249148]
[1644774838299,0.89282292,2887.7,2886.9,0.86606]
[1644774838497,0.89282292,2887.7,2886.9,1.03916]
[1644774839096,0.89282292,2887.7,2886.9,1.90518]
[1644774841142,0.89282292,2887.7,2886.9,1.73208]
[1644774845001,1.75890292,2887.7,2886.9,1.73208]
[1644774845202,1.75890292,2887.7,2886.8,0.801]
[1644774846004,1.75890292,2887.7,2887.0,1.1925389]
[1644774846202,0.86608,2887.7,2887.0,1.1925389]
[1644774846404,0.86602,2887.9,2887.1,0.501]
[1644774846604,0.01073473,2888.2,2887.1,0.6741]
[1644774846846,1.05246591,2888.6,2887.2,1.1468]
[1644774847046,0.01073537,2888.2,2887.3,0.501]
[1644774847544,0.01073537,2888.2,2887.7,1.02193945]
[1644774847847,0.01073537,2888.2,2887.5,0.501]
[1644774847848,0.86595,2888.1,2887.5,0.501]
[1644774850449,1.73195,2888.1,2887.5,0.501]
[1644774851597,0.86595,2888.1,2887.5,0.501]
[1644774851797,0.1438,2888.0,2887.5,0.801]
[1644774851996,0.1438,2888.0,2887.5,1.2741]
[1644774852296,0.1438,2888.0,2887.5,1.27293321]
[1644774852595,0.1438,2888.0,2887.6,0.86585]
[1644774852795,0.1438,2888.0,2887.7,0.1731]
[1644774853495,0.1438,2888.0,2887.5,0.501]
[1644774853896,1.00977,2888.0,2887.5,0.501]
[1644774854096,0.1438,2888.0,2887.5,0.501]
[1644774854356,0.1438,2888.0,2887.5,0.6741]
[1644774854546,1.05279121,2887.9,2887.5,0.6741]
[1644774855147,0.1438,2887.8,2887.5,0.6741]
[1644774855748,0.1438,2887.8,2887.5,1.0157265]
[1644774856149,0.1438,2887.8,2887.5,2.7475465]
[1644774856351,0.1438,2887.8,2887.5,1.8816365]
[1644774856548,0.1438,2887.8,2887.6,0.3]
[1644774856748,0.1438,2887.8,2887.7,0.1731]
[1644774856948,0.1438,2887.8,2887.7,1.19006335]
[1644774857149,0.1438,2887.8,2887.7,1.01696335]
[1644774857651,0.1438,2887.8,2887.5,1.3806365]
[1644774858300,0.1438,2887.8,2887.5,0.5147265]
[1644774858699,0.1438,2887.8,2887.5,1.42569402]
[1644774858902,0.1438,2888.0,2887.5,1.42569402]
[1644774859698,0.1438,2888.0,2887.5,3.15751402]
[1644774861101,0.1438,2888.0,2887.6,1.1659]
[1644774861306,0.1438,2888.0,2887.7,1.36681]
[1644774861506,0.1438,2888.1,2887.7,1.36681]
[1644774862148,0.1438,2888.1,2887.7,2.23268]
[1644774862345,0.1438,2888.1,2887.7,0.501]
[1644774862746,1.00974,2888.1,2887.7,0.501]
[1644774863547,0.1438,2888.1,2887.7,1.36688]
[1644774863948,0.1438,2888.1,2887.7,1.66688]
[1644774864250,0.1438,2888.1,2887.7,0.501]
[1644774864447,0.1438,2888.1,2888.0,0.85215426]
[1644774864647,0.1438,2888.1,2887.6,1.3814]
[1644774864850,0.1438,2888.1,2887.7,0.86585]
[1644774865250,0.01073593,2888.2,2887.6,1.6814]
[1644774865897,0.01073593,2888.2,2887.8,0.87476994]
[1644774866098,0.86594,2888.3,2887.8,0.87476994]
[1644774866299,0.01073555,2888.2,2887.8,0.87476994]
[1644774866500,0.86594,2888.1,2887.8,0.87476994]
[1644774867100,0.86594,2888.1,2887.6,1.3814]
[1644774867403,0.86594,2888.1,2887.6,0.1731]
[1644774867900,0.01073565,2888.2,2887.6,0.1731]
[1644774868300,0.01073565,2888.2,2887.7,0.86588]
[1644774868500,0.1731,2888.5,2887.7,0.86588]
[1644774868501,0.1438,2888.0,2887.7,0.86588]
[1644774869360,0.1438,2888.0,2887.7,1.16588]
[1644774869554,0.1438,2888.0,2887.7,0.86588]
[1644774869850,0.1438,2888.0,2887.7,1.46588]
[1644774870050,0.1438,2888.0,2887.8,0.86586]
[1644774870352,0.1438,2888.0,2887.8,1.73171]
[1644774870549,0.1438,2888.0,2887.9,0.3]
[1644774870750,0.1438,2888.0,2887.8,1.73171]
[1644774871449,0.01073553,2888.2,2887.8,1.73171]
[1644774871450,0.1438,2888.1,2887.9,0.86583]
[1644774872652,0.0438,2888.1,2887.9,0.86583]
[1644774874695,0.0438,2888.1,2887.9,1.16583]
[1644774874899,0.0438,2888.1,2887.9,1.46583]
[1644774875095,0.01073578,2888.2,2887.9,2.33162]
[1644774875298,0.01073578,2888.2,2888.0,0.86578]
[1644774875496,0.01073578,2888.2,2887.9,1.46579]
[1644774875694,0.0438,2888.4,2887.9,0.3]
[1644774875896,0.01073586,2888.2,2887.8,1.7731]
[1644774876096,0.86593,2888.1,2887.8,1.7731]
[1644774876297,0.86593,2888.1,2887.8,0.1731]
[1644774876697,1.91521505,2888.1,2887.8,0.1731]
[1644774876949,5.17977021,2888.0,2887.1,1.1251]
[1644774877145,5.17977021,2888.0,2887.2,1.47406634]
[1644774877146,0.86619,2887.8,2887.2,1.47406634]
[1644774877346,5.17111887,2887.7,2887.2,1.47406634]
[1644774877744,1.73239,2887.7,2887.4,0.86956155]
[1644774877945,0.86619,2887.8,2887.4,0.86956155]
[1644774877946,0.8662,2887.6,2887.4,0.86956155]
[1644774878146,1.77614,2887.6,2887.4,0.86956155]
[1644774878646,1.77614,2887.6,2887.1,1.1251]
[1644774878647,0.90994,2887.6,2887.1,1.1251]
[1644774878846,0.90994,2887.6,2887.2,1.47414692]
[1644774879047,0.90994,2887.6,2887.0,0.1731]
[1644774879345,0.90994,2887.6,2887.1,1.47415057]
[1644774879747,1.7761,2887.6,2887.2,0.93241026]
[1644774880150,0.86617,2887.5,2887.2,0.93241026]
[1644774880348,1.68232,2887.5,2887.2,0.93241026]
[1644774880799,0.81615,2887.5,2887.2,0.93241026]
[1644774881195,0.0438,2887.4,2887.2,0.93241026]
[1644774882203,0.0438,2887.4,2887.3,1.47416748]
[1644774882800,0.0438,2887.4,2887.2,0.93241026]
[1644774885047,2.61153591,2887.9,2887.2,0.93241026]
[1644774885048,0.0438,2887.6,2887.2,0.93241026]
[1644774885249,0.0438,2887.6,2887.3,1.47412002]
[1644774886349,0.0438,2887.6,2887.2,0.93241026]
[1644774886551,0.0438,2887.6,2887.3,1.47416064]
[1644774886955,0.0438,2887.6,2887.2,0.93241026]
[1644774887550,0.9099,2887.6,2887.2,0.93241026]
[1644774889901,0.9099,2887.6,2886.8,4.9413]
[1644774890102,0.8662,2887.5,2886.9,1.47429045]
[1644774890303,0.86633,2887.3,2886.9,1.47429045]
[1644774891105,1.73264,2887.2,2886.9,1.47429045]
[1644774891306,2.5989,2887.2,2886.9,1.47429045]
[1644774891504,1.73258,2887.2,2887.0,1.47429045]
[1644774891705,1.73258,2887.2,2886.8,1.11056242]
[1644774891952,1.73258,2887.2,2886.9,1.47431925]
[1644774892949,0.86629,2887.1,2886.9,1.47431925]
[1644774893150,1.73258,2887.1,2886.9,1.47431925]
[1644774893749,0.0438,2887.0,2886.9,1.47431925]
[1644774897200,0.91011,2887.0,2886.9,1.47431925]
[1644774897403,0.91011,2887.0,2886.8,1.11056242]
[1644774897600,1.77643,2887.0,2886.8,1.11056242]
[1644774898001,0.91012,2887.0,2886.8,1.11056242]
[1644774899449,0.91012,2887.0,2886.4,1.4039]
[1644774899651,0.91012,2887.0,2886.5,1.47435379]
[1644774901450,0.91012,2887.0,2886.9,0.85060574]
[1644774903096,0.0438,2887.0,2886.9,0.8495875]
[1644774903800,0.0438,2887.0,2886.9,2.32388523]
[1644774903995,0.0438,2887.1,2886.9,2.32388523]
[1644774904196,0.0438,2887.1,2886.9,0.8495875]
[1644774904399,0.0438,2887.1,2887.0,1.47424055]
[1644774904597,0.0438,2887.1,2886.9,2.5818475]
[1644774904997,0.0438,2887.1,2887.0,1.474248]
[1644774905599,0.1731,2887.7,2887.1,0.05218577]
[1644774905999,0.1731,2887.7,2887.2,1.474248]
[1644774906203,2.94199,2887.8,2887.2,1.474248]
[1644774906204,0.86602,2887.8,2887.2,1.474248]
[1644774906403,0.86602,2887.8,2887.2,2.340278]
[1644774906599,3.0913,2888.1,2887.3,2.340248]
[1644774906860,5.1052,2888.3,2887.4,1.474248]
[1644774907049,1.1299,2888.3,2887.5,2.59476891]
[1644774907248,4.00716591,2888.5,2887.6,1.474248]
[1644774907249,0.01073458,2888.2,2887.6,1.474248]
[1644774908049,1.73184,2888.5,2887.6,1.774248]
[1644774908250,1.73184,2888.5,2888.2,0.91131788]
[1644774908849,0.86592,2888.3,2888.2,0.91131788]
[1644774909249,0.87936591,2888.7,2888.2,0.91131788]
[1644774909653,0.01073577,2888.4,2888.2,1.21131788]
[1644774910250,0.01073577,2888.4,2888.2,2.07701788]
[1644774910697,0.01073563,2888.4,2888.2,1.21131788]
[1644774911702,0.1731,2888.9,2888.2,1.21131788]
[1644774911905,0.01073563,2888.4,2888.2,1.21131788]
[1644774912499,0.01073563,2888.4,2888.2,1.72089098]
[1644774912901,2.7705,2888.9,2888.2,1.72089098]
[1644774913201,0.01073563,2888.4,2888.2,1.72089098]
[1644774914003,0.1729,2889.0,2888.2,3.52189098]
[1644774914207,0.00386378,2889.2,2888.3,0.1729]
[1644774914450,0.0107356,2888.4,2888.3,0.1729]
[1644774914652,0.0107356,2888.4,2888.3,2.8564372]
[1644774914850,0.0107356,2888.4,2888.3,6.9541272]
[1644774915047,0.0107356,2888.4,2888.3,10.85757031]
[1644774915249,0.00386378,2889.3,2888.3,10.85757031]
[1644774915549,0.00386378,2889.3,2888.4,2.4735372]
[1644774915550,0.01073554,2888.5,2888.4,2.4735372]
[1644774915749,0.01073554,2888.5,2888.4,7.19026803]
[1644774915949,0.01073554,2888.5,2888.4,8.22887803]
[1644774916151,0.01073554,2888.5,2888.4,8.48635083]
[1644774916651,0.00387671,2889.4,2888.5,0.86557]
[1644774916853,0.01073543,2888.6,2888.5,0.91169]
[1644774917049,0.01073543,2888.6,2888.5,3.96278621]
[1644774917450,0.01073543,2888.6,2888.5,4.96278621]
[1644774917654,0.86557,2889.5,2888.5,4.96278621]
[1644774917851,0.01073531,2888.7,2888.6,1.0]
[1644774918102,0.01073531,2888.7,2888.6,6.32485463]
[1644774918304,0.01073531,2888.7,2888.6,6.62485463]
[1644774918903,0.00387671,2889.4,2888.6,6.62485463]
[1644774919102,0.00387671,2889.4,2889.1,1.12492315]
[1644774919304,0.00387671,2889.4,2888.6,6.42526641]
[1644774919506,0.00387671,2889.4,2888.6,5.33571337]
[1644774919704,0.86947671,2889.4,2888.6,5.33571337]
[1644774920305,0.01073479,2889.1,2888.6,5.33571337]
[1644774920505,0.01073479,2889.1,2888.7,0.89254336]
[1644774920705,0.01073479,2889.1,2888.7,1.06544336]
[1644774920908,0.01073479,2889.1,2888.8,3.75371123]
[1644774921206,0.01073479,2889.1,2888.8,4.35371123]
[1644774921406,0.86947671,2889.4,2888.8,4.35371123]
[1644774921607,0.01073482,2889.1,2888.8,4.35371123]
[1644774922453,0.86947671,2889.4,2888.8,4.35371123]
[1644774922853,0.01073482,2889.1,2888.8,4.35371123]
[1644774923057,0.01073482,2889.1,2888.8,1.101]
[1644774923255,0.01073482,2889.1,2888.8,0.501]
[1644774923756,0.86943701,2889.4,2888.8,0.501]
[1644774923953,0.01073482,2889.1,2888.8,0.501]
[1644774924756,0.01461153,2889.1,2888.8,0.801]
[1644774924954,3.05336771,2889.9,2888.8,0.801]
[1644774924955,0.00387671,2889.3,2888.8,0.801]
[1644774925157,0.00387671,2889.5,2889.3,0.88155445]
[1644774925361,0.00387671,2889.7,2889.3,0.88155445]
[1644774925800,0.86554,2889.8,2889.3,0.88155445]
[1644774926000,1.73500671,2889.7,2889.3,0.88155445]
[1644774926300,2.59668,2889.7,2889.3,0.88155445]
[1644774926501,0.01073416,2889.6,2889.3,0.88155445]
[1644774926701,0.87632416,2889.6,2889.3,0.88155445]
[1644774926900,0.88020087,2889.6,2889.3,0.88155445]
[1644774927104,0.86562,2889.5,2889.3,0.88155445]
[1644774928202,0.86561,2889.5,2888.9,0.1729]
[1644774928403,0.00387671,2889.4,2888.9,0.6739]
[1644774928603,0.00387671,2889.4,2889.0,3.3586849]
[1644774928813,1.74200423,2889.5,2888.9,0.6739]
[1644774929002,1.74200423,2889.5,2888.9,0.501]
[1644774929204,0.00387671,2889.4,2888.9,0.501]
[1644774929447,0.00387671,2889.4,2889.1,1.08187703]
[1644774929448,0.86951671,2889.4,2889.1,1.08187703]
[1644774929653,0.1729,2889.7,2889.2,3.85309677]
[1644774929654,0.00387671,2889.6,2889.2,3.85309677]
[1644774929850,0.00387671,2889.6,2889.3,1.8653]
[1644774930047,0.1729,2889.7,2889.3,1.8653]
[1644774930048,0.1729,2889.7,2889.4,4.02045774]
[1644774930247,0.1729,2889.7,2889.4,4.32045774]
[1644774930248,0.00387671,2889.6,2889.4,4.32045774]
[1644774930448,0.1729,2889.7,2889.5,3.40214748]
[1644774930649,0.1729,2889.7,2889.6,0.501]
[1644774930850,0.87936591,2890.0,2888.9,0.501]
[1644774931047,0.00388104,2889.6,2888.9,0.1729]
[1644774931248,1.73121,2889.7,2888.9,0.1729]
[1644774931249,1.74194399,2889.7,2888.9,0.1729]
[1644774931547,0.00388104,2889.6,2888.8,0.1729]
[1644774931750,0.00388104,2889.6,2889.2,0.87648271]
[1644774931751,0.86563,2889.4,2889.2,0.87648271]
[1644774932349,0.87636438,2889.4,2889.2,0.87648271]
[1644774932949,1.74200438,2889.4,2889.2,0.87648271]
[1644774933199,1.74200438,2889.4,2888.8,0.1729]
[1644774933400,1.74200438,2889.4,2888.7,1.7741]
[1644774933401,0.86955104,2889.3,2888.7,1.7741]
[1644774933803,0.86955104,2889.3,2888.5,1.73129]
[1644774934002,0.86955104,2889.3,2888.5,3.03129]
[1644774934200,0.86955104,2889.3,2889.0,1.02965756]
[1644774936001,0.88028558,2889.3,2889.0,1.02965756]
[1644774936868,0.86955104,2889.3,2889.0,1.02965756]
[1644774937358,0.88028558,2889.3,2888.4,4.73296]
[1644774937555,0.88028558,2889.3,2888.3,0.1729]
[1644774937754,0.8658,2889.0,2888.3,0.1729]
[1644774937953,0.00388104,2888.9,2888.3,0.1729]
[1644774938352,0.01073512,2888.8,2888.3,0.1729]
[1644774938954,0.87650512,2888.8,2888.4,1.15156597]
[1644774939359,0.86577,2888.8,2888.4,1.1503026]
[1644774939655,0.01073523,2888.7,2888.4,1.1503026]
[1644774940455,0.86577,2888.7,2888.4,1.1503026]
[1644774940700,0.87650529,2888.7,2888.4,1.1503026]
[1644774941699,0.86577,2888.7,2888.4,1.1503026]
[1644774941904,0.87650529,2888.7,2888.4,1.1503026]
[1644774942901,0.86577,2888.7,2888.4,1.1503026]
[1644774943101,0.87650529,2888.7,2888.4,1.1503026]
[1644774943502,0.01073529,2888.7,2888.4,1.1503026]
[1644774944002,0.01073529,2888.7,2888.4,1.7503026]
[1644774944203,0.00388104,2888.9,2888.4,1.7503026]
[1644774944452,0.01073529,2888.7,2888.5,3.25181617]
[1644774944654,0.01073529,2888.7,2888.5,1.1442]
[1644774944850,0.01073529,2888.7,2888.6,3.2819471]
[1644774945251,0.00388104,2889.3,2888.6,3.2819471]
[1644774945452,0.01073518,2888.8,2888.6,3.2819471]
[1644774945655,0.01073518,2888.8,2888.5,1.3171]
[1644774945851,0.01073518,2888.8,2888.6,4.1104087]
[1644774946253,0.01073518,2888.8,2888.7,0.86557]
[1644774946454,0.00388104,2889.3,2888.7,0.86557]
[1644774946856,0.01073512,2888.8,2888.7,0.86557]
[1644774947660,0.00388104,2889.3,2889.1,1.06502854]
[1644774947854,0.86557,2889.4,2889.1,1.06502854]
[1644774949100,1.75567038,2889.4,2889.1,1.06502854]
[1644774949902,2.62127038,2889.4,2889.1,1.06502854]